[Event "*** Titled Tuesday Blitz"]
[Site "Chess.com"]
[Date "2021.04.20"]
[Round "10"]
[White "SchmakAttack"]
[Black "TimofeevAr"]
[Result "0-1"]
[WhiteElo "2630"]
[BlackElo "2820"]
[TimeControl "180+1"]
[EndTime "11:56:11 PDT"]
[Termination "TimofeevAr won on time"]

1. Nf3 {[%clk 0:02:58.6]} 1... d5 {[%clk 0:02:58.5]} 2. g3 {[%clk 0:02:58.4]}
2... g6 {[%clk 0:02:57.5]} 3. c4 {[%clk 0:02:56.9]} 3... d4 {[%clk 0:02:53.7]}
4. Bg2 {[%clk 0:02:45.7]} 4... Bg7 {[%clk 0:02:53.6]} 5. O-O {[%clk 0:02:42.7]}
5... Nc6 {[%clk 0:02:53.7]} 6. d3 {[%clk 0:02:41.5]} 6... e5 {[%clk 0:02:52.1]}
7. Na3 {[%clk 0:02:17.3]} 7... Nf6 {[%clk 0:02:39]} 8. Nc2 {[%clk 0:02:16]} 8...
a5 {[%clk 0:02:38.5]} 9. e3 {[%clk 0:02:08.4]} 9... dxe3 {[%clk 0:02:34.7]} 10.
Bxe3 {[%clk 0:02:08.9]} 10... O-O {[%clk 0:02:34.2]} 11. d4 {[%clk 0:01:43.8]}
11... exd4 {[%clk 0:02:28.5]} 12. Ncxd4 {[%clk 0:01:38.3]} 12... Nxd4 {[%clk
0:02:28.2]} 13. Bxd4 {[%clk 0:01:37.2]} 13... c6 {[%clk 0:02:27]} 14. Qb3 {[%clk
0:01:24.3]} 14... a4 {[%clk 0:02:21.1]} 15. Qa3 {[%clk 0:01:23.4]} 15... Bg4
{[%clk 0:02:14.4]} 16. Rad1 {[%clk 0:01:22]} 16... Qc8 {[%clk 0:02:03.4]} 17.
Rfe1 {[%clk 0:01:20.4]} 17... Rd8 {[%clk 0:02:01.3]} 18. Qc3 {[%clk 0:00:54.2]}
18... Qf5 {[%clk 0:01:56.9]} 19. Nh4 {[%clk 0:00:50.7]} 19... Qh5 {[%clk
0:01:47.6]} 20. f3 {[%clk 0:00:45.9]} 20... Rxd4 {[%clk 0:01:47.3]} 21. Qxd4
{[%clk 0:00:39.3]} 21... Be6 {[%clk 0:01:47.3]} 22. Qe5 {[%clk 0:00:06.3]} 22...
Qxe5 {[%clk 0:01:38.5]} 23. Rxe5 {[%clk 0:00:07.2]} 23... Bxc4 {[%clk
0:01:39.1]} 24. b3 {[%clk 0:00:07.3]} 24... Be6 {[%clk 0:01:35.2]} 25. Re2
{[%clk 0:00:04.4]} 25... Nd5 {[%clk 0:01:34.6]} 26. Red2 {[%clk 0:00:02.8]}
26... g5 {[%clk 0:01:34]} 27. f4 {[%clk 0:00:01.6]} 27... gxh4 {[%clk
0:01:33.7]} 28. gxh4 {[%clk 0:00:02.1]} 28... Bf6 {[%clk 0:01:31.6]} 29. f5
{[%clk 0:00:01.5]} 29... Bxf5 {[%clk 0:01:31.3]} 30. Bxd5 {[%clk 0:00:01.9]}
30... cxd5 {[%clk 0:01:31.2]} 31. Rf2 {[%clk 0:00:01.9]} 31... Be6 {[%clk
0:00:28.2]} 32. Rxf6 {[%clk 0:00:01.7]} 32... axb3 {[%clk 0:00:29.1]} 33. axb3
{[%clk 0:00:01.9]} 33... Ra3 {[%clk 0:00:30]} 34. Rf3 {[%clk 0:00:01.7]} 34...
Kf8 {[%clk 0:00:29.7]} 35. Rc1 {[%clk 0:00:02.1]} 35... d4 {[%clk 0:00:25.6]}
36. Rd3 {[%clk 0:00:02.4]} 36... Rxb3 {[%clk 0:00:22.6]} 37. Rxd4 {[%clk
0:00:02.7]} 37... Ke7 {[%clk 0:00:22.6]} 38. Rc7+ {[%clk 0:00:03]} 38... Kf6
{[%clk 0:00:22.3]} 39. Rc5 {[%clk 0:00:03.1]} 39... b5 {[%clk 0:00:20.1]} 40.
Kf2 {[%clk 0:00:02.4]} 40... Rb2+ {[%clk 0:00:19.7]} 41. Kg3 {[%clk 0:00:02.8]}
41... b4 {[%clk 0:00:20]} 42. Rb5 {[%clk 0:00:02.9]} 42... b3 {[%clk 0:00:20.3]}
43. Rf4+ {[%clk 0:00:02.8]} 43... Ke7 {[%clk 0:00:19.9]} 44. Rb7+ {[%clk
0:00:02.2]} 44... Kd6 {[%clk 0:00:20.2]} 45. Rfb4 {[%clk 0:00:02.6]} 45... h5
{[%clk 0:00:17.2]} 46. Rb8 {[%clk 0:00:02.3]} 46... Ke7 {[%clk 0:00:16.3]} 47.
R4b5 {[%clk 0:00:02.5]} 47... Rc2 {[%clk 0:00:09.2]} 48. Rxh5 {[%clk 0:00:02.5]}
48... f5 {[%clk 0:00:07.5]} 49. Rh7+ {[%clk 0:00:01.4]} 49... Kf6 {[%clk
0:00:07.9]} 50. Rhb7 {[%clk 0:00:01]} 50... Ke5 {[%clk 0:00:07.4]} 0-1

[Event "*** Titled Tuesday Blitz"]
[Site "Chess.com"]
[Date "2021.04.20"]
[Round "10"]
[White "Taktikmonster"]
[Black "GameOverBro"]
[Result "1/2-1/2"]
[WhiteElo "2418"]
[BlackElo "2524"]
[TimeControl "180+1"]
[EndTime "11:56:13 PDT"]
[Termination "Game drawn - insufficient material"]

1. e4 {[%clk 0:03:00.9]} 1... a6 {[%clk 0:03:00.6]} 2. d4 {[%clk 0:02:58.7]}
2... b6 {[%clk 0:03:01.5]} 3. Nc3 {[%clk 0:02:56.9]} 3... c6 {[%clk 0:03:02.4]}
4. Nf3 {[%clk 0:02:57.1]} 4... d6 {[%clk 0:03:03.2]} 5. Bf4 {[%clk 0:02:55.8]}
5... e6 {[%clk 0:03:03.4]} 6. Qd2 {[%clk 0:02:55.8]} 6... f6 {[%clk 0:03:03.2]}
7. O-O-O {[%clk 0:02:55.8]} 7... b5 {[%clk 0:02:56.9]} 8. Bd3 {[%clk 0:02:42.8]}
8... a5 {[%clk 0:02:54.5]} 9. g4 {[%clk 0:02:40.5]} 9... Ne7 {[%clk 0:02:42.6]}
10. g5 {[%clk 0:02:36.6]} 10... Ng6 {[%clk 0:02:40.6]} 11. h4 {[%clk 0:02:15.6]}
11... Nxf4 {[%clk 0:02:36]} 12. Qxf4 {[%clk 0:02:16.5]} 12... b4 {[%clk
0:02:30.3]} 13. Ne2 {[%clk 0:02:08.3]} 13... a4 {[%clk 0:02:27.8]} 14. e5 {[%clk
0:01:55.9]} 14... fxe5 {[%clk 0:02:21.3]} 15. dxe5 {[%clk 0:01:56.8]} 15... d5
{[%clk 0:02:21.3]} 16. g6 {[%clk 0:01:45.7]} 16... hxg6 {[%clk 0:02:15.5]} 17.
Bxg6+ {[%clk 0:01:46.6]} 17... Kd7 {[%clk 0:02:16]} 18. Ng5 {[%clk 0:01:36.8]}
18... Be7 {[%clk 0:02:11]} 19. Nxe6 {[%clk 0:01:27.6]} 19... Qg8 {[%clk
0:01:24.1]} 20. N2d4 {[%clk 0:01:26.2]} 20... c5 {[%clk 0:01:02]} 21. Nb5 {[%clk
0:00:50.4]} 21... Kc6 {[%clk 0:00:47.7]} 22. Nbc7 {[%clk 0:00:48.3]} 22... Bxe6
{[%clk 0:00:45.8]} 23. Nxa8 {[%clk 0:00:45.5]} 23... Nd7 {[%clk 0:00:42.3]} 24.
Kb1 {[%clk 0:00:11.1]} 24... Qxa8 {[%clk 0:00:40.7]} 25. h5 {[%clk 0:00:07.9]}
25... Qf8 {[%clk 0:00:33.4]} 26. Qg3 {[%clk 0:00:08.1]} 26... a3 {[%clk
0:00:29]} 27. bxa3 {[%clk 0:00:05.4]} 27... bxa3 {[%clk 0:00:28.5]} 28. Qxa3
{[%clk 0:00:06.3]} 28... Qb8+ {[%clk 0:00:28.5]} 29. Ka1 {[%clk 0:00:06.7]}
29... Qb4 {[%clk 0:00:27.1]} 30. Qxb4 {[%clk 0:00:03.7]} 30... cxb4 {[%clk
0:00:27.1]} 31. f4 {[%clk 0:00:03.8]} 31... Ra8 {[%clk 0:00:20.3]} 32. Kb2
{[%clk 0:00:03]} 32... Nc5 {[%clk 0:00:19.2]} 33. f5 {[%clk 0:00:01.8]} 33...
Bg8 {[%clk 0:00:16.2]} 34. e6 {[%clk 0:00:02.7]} 34... Bf6+ {[%clk 0:00:16]} 35.
Kc1 {[%clk 0:00:02.8]} 35... Rxa2 {[%clk 0:00:14.6]} 36. Kd2 {[%clk 0:00:02.9]}
36... Bg5+ {[%clk 0:00:14.4]} 37. Ke2 {[%clk 0:00:02.4]} 37... Rxc2+ {[%clk
0:00:14.2]} 38. Kf3 {[%clk 0:00:03.1]} 38... Nxe6 {[%clk 0:00:12.3]} 39. fxe6
{[%clk 0:00:03.2]} 39... Bxe6 {[%clk 0:00:12.9]} 40. Bxc2 {[%clk 0:00:03.4]}
40... d4 {[%clk 0:00:11.3]} 41. Be4+ {[%clk 0:00:03.4]} 41... Kb5 {[%clk
0:00:11]} 42. Rb1 {[%clk 0:00:04.3]} 42... b3 {[%clk 0:00:10.9]} 43. Rhd1 {[%clk
0:00:04.4]} 43... Be3 {[%clk 0:00:10.9]} 44. Rd3 {[%clk 0:00:03.2]} 44... Ka4
{[%clk 0:00:09.4]} 45. Rxe3 {[%clk 0:00:03.5]} 45... dxe3 {[%clk 0:00:09.4]} 46.
Kxe3 {[%clk 0:00:04.4]} 46... Ka3 {[%clk 0:00:09.5]} 47. Kd3 {[%clk 0:00:04.9]}
47... Ka2 {[%clk 0:00:09.2]} 48. Kc3 {[%clk 0:00:05.4]} 48... Bf7 {[%clk
0:00:08.9]} 49. Rb2+ {[%clk 0:00:05.9]} 49... Ka3 {[%clk 0:00:08.7]} 50. Bg6
{[%clk 0:00:06.3]} 50... Bd5 {[%clk 0:00:08.9]} 51. Rb1 {[%clk 0:00:03.6]} 51...
Ka2 {[%clk 0:00:09]} 52. Rb2+ {[%clk 0:00:03.5]} 52... Ka3 {[%clk 0:00:09.5]}
53. Rf2 {[%clk 0:00:03.8]} 53... Be6 {[%clk 0:00:07.4]} 54. Kd4 {[%clk
0:00:02.9]} 54... Bg4 {[%clk 0:00:05.7]} 55. Ke5 {[%clk 0:00:02.4]} 55... b2
{[%clk 0:00:04.9]} 56. Rf1 {[%clk 0:00:02.8]} 56... Ka2 {[%clk 0:00:04.8]} 57.
Kf4 {[%clk 0:00:02.2]} 57... Bxh5 {[%clk 0:00:03.5]} 58. Bxh5 {[%clk 0:00:02.9]}
58... b1=Q {[%clk 0:00:03.9]} 59. Rxb1 {[%clk 0:00:03.3]} 59... Kxb1 {[%clk
0:00:04.8]} 60. Kg5 {[%clk 0:00:03.7]} 60... Kc2 {[%clk 0:00:04.7]} 61. Kg6
{[%clk 0:00:03.7]} 61... Kc3 {[%clk 0:00:05.6]} 62. Kxg7 {[%clk 0:00:03.5]}
1/2-1/2

[Event "*** Titled Tuesday Blitz"]
[Site "Chess.com"]
[Date "2021.04.20"]
[Round "10"]
[White "kuba2006"]
[Black "Steegersee"]
[Result "1-0"]
[WhiteElo "2328"]
[BlackElo "2222"]
[TimeControl "180+1"]
[EndTime "11:56:15 PDT"]
[Termination "kuba2006 won on time"]

1. b3 {[%clk 0:03:00.9]} 1... e5 {[%clk 0:02:54.3]} 2. Bb2 {[%clk 0:03:01.8]}
2... Nc6 {[%clk 0:02:54.2]} 3. e3 {[%clk 0:03:02.1]} 3... Nf6 {[%clk 0:02:38.3]}
4. Bb5 {[%clk 0:03:00]} 4... e4 {[%clk 0:02:37.7]} 5. f3 {[%clk 0:02:46.6]} 5...
a6 {[%clk 0:02:35.6]} 6. Bxc6 {[%clk 0:02:44.6]} 6... dxc6 {[%clk 0:02:36.5]} 7.
fxe4 {[%clk 0:02:42.6]} 7... Nxe4 {[%clk 0:02:33.1]} 8. Nf3 {[%clk 0:02:42.6]}
8... Bg4 {[%clk 0:02:22.7]} 9. O-O {[%clk 0:02:38.6]} 9... f6 {[%clk 0:02:08.6]}
10. h3 {[%clk 0:02:26.5]} 10... Bh5 {[%clk 0:01:59.7]} 11. d3 {[%clk 0:02:25.7]}
11... Ng5 {[%clk 0:01:13.5]} 12. Nbd2 {[%clk 0:02:05.4]} 12... Qd7 {[%clk
0:01:10.6]} 13. Qe1 {[%clk 0:01:55.9]} 13... Nxf3+ {[%clk 0:01:06.5]} 14. Nxf3
{[%clk 0:01:56.8]} 14... O-O-O {[%clk 0:01:06.9]} 15. Qh4 {[%clk 0:01:51.8]}
15... Bg6 {[%clk 0:01:03]} 16. Rae1 {[%clk 0:01:38.2]} 16... Be7 {[%clk
0:00:45.6]} 17. Kh1 {[%clk 0:01:29.6]} 17... f5 {[%clk 0:00:44.2]} 18. Qf4
{[%clk 0:01:19.4]} 18... Bd6 {[%clk 0:00:32.5]} 19. Be5 {[%clk 0:01:18.1]} 19...
Rhf8 {[%clk 0:00:29.9]} 20. d4 {[%clk 0:01:17.1]} 20... h6 {[%clk 0:00:17.6]}
21. c4 {[%clk 0:01:08.6]} 21... Bh7 {[%clk 0:00:14.7]} 22. Bxd6 {[%clk
0:00:21.4]} 22... g5 {[%clk 0:00:12.8]} 23. Qg3 {[%clk 0:00:16]} 23... cxd6
{[%clk 0:00:11.4]} 24. c5 {[%clk 0:00:15.4]} 24... f4 {[%clk 0:00:06.8]} 25.
exf4 {[%clk 0:00:13.9]} 25... gxf4 {[%clk 0:00:07.7]} 26. Qh4 {[%clk 0:00:11.8]}
26... Qg7 {[%clk 0:00:05.9]} 27. Re7 {[%clk 0:00:10.8]} 27... Qf6 {[%clk
0:00:04.6]} 28. Qxf6 {[%clk 0:00:10.1]} 28... Rxf6 {[%clk 0:00:03.4]} 29. Rxh7
{[%clk 0:00:10.6]} 29... dxc5 {[%clk 0:00:03.9]} 30. dxc5 {[%clk 0:00:10.5]}
30... Rg8 {[%clk 0:00:04.8]} 31. Re7 {[%clk 0:00:09.8]} 31... Rfg6 {[%clk
0:00:04.9]} 32. Re2 {[%clk 0:00:09.7]} 32... Rg3 {[%clk 0:00:05.1]} 33. Rd1
{[%clk 0:00:09]} 33... Rf8 {[%clk 0:00:04.7]} 34. Rd6 {[%clk 0:00:08.5]} 34...
h5 {[%clk 0:00:04.5]} 35. Kh2 {[%clk 0:00:08.7]} 35... Rfg8 {[%clk 0:00:03.8]}
36. Rh6 {[%clk 0:00:07.8]} 36... Rd8 {[%clk 0:00:03.5]} 37. Rhe6 {[%clk
0:00:07.3]} 37... Rd1 {[%clk 0:00:03.8]} 38. Re8+ {[%clk 0:00:07.4]} 38... Kc7
{[%clk 0:00:03.7]} 39. R2e7+ {[%clk 0:00:07.9]} 39... Rd7 {[%clk 0:00:04.6]} 40.
Rxd7+ {[%clk 0:00:08.2]} 40... Kxd7 {[%clk 0:00:05.5]} 41. Rh8 {[%clk
0:00:08.2]} 41... Rg7 {[%clk 0:00:04.9]} 42. Rxh5 {[%clk 0:00:08.3]} 42... Ke6
{[%clk 0:00:05.8]} 43. Rh6+ {[%clk 0:00:08]} 43... Kd5 {[%clk 0:00:05.5]} 44. b4
{[%clk 0:00:08.1]} 44... Kc4 {[%clk 0:00:05.9]} 45. a3 {[%clk 0:00:07.1]} 45...
Kb3 {[%clk 0:00:05.7]} 46. Rf6 {[%clk 0:00:07.6]} 46... Kxa3 {[%clk 0:00:05.1]}
47. Rxf4 {[%clk 0:00:08.1]} 47... Ka4 {[%clk 0:00:05.7]} 48. h4 {[%clk
0:00:08.4]} 48... Kb5 {[%clk 0:00:05.7]} 49. h5 {[%clk 0:00:08]} 49... Rh7
{[%clk 0:00:04.9]} 50. g4 {[%clk 0:00:07.7]} 50... a5 {[%clk 0:00:04.2]} 51.
bxa5 {[%clk 0:00:07]} 51... Kxc5 {[%clk 0:00:04.6]} 52. Kg3 {[%clk 0:00:06.8]}
52... Kb5 {[%clk 0:00:03.7]} 53. Kh4 {[%clk 0:00:07]} 53... c5 {[%clk
0:00:03.3]} 54. g5 {[%clk 0:00:07.2]} 54... c4 {[%clk 0:00:02.2]} 55. g6 {[%clk
0:00:07.2]} 1-0

[Event "*** Titled Tuesday Blitz"]
[Site "Chess.com"]
[Date "2021.04.20"]
[Round "10"]
[White "HackingKid98"]
[Black "azikom"]
[Result "0-1"]
[WhiteElo "2470"]
[BlackElo "2638"]
[TimeControl "180+1"]
[EndTime "11:56:16 PDT"]
[Termination "azikom won on time"]

1. d4 {[%clk 0:03:00.9]} 1... d5 {[%clk 0:02:59.4]} 2. c4 {[%clk 0:03:00.5]}
2... c6 {[%clk 0:02:59.8]} 3. Nf3 {[%clk 0:02:56.8]} 3... Nf6 {[%clk 0:02:59.3]}
4. g3 {[%clk 0:02:57.1]} 4... dxc4 {[%clk 0:02:59]} 5. a4 {[%clk 0:02:55.7]}
5... Bf5 {[%clk 0:02:50.7]} 6. Nc3 {[%clk 0:02:53]} 6... e6 {[%clk 0:02:48.9]}
7. Bg2 {[%clk 0:02:53]} 7... Nbd7 {[%clk 0:02:46.8]} 8. Nd2 {[%clk 0:02:52.6]}
8... Nb6 {[%clk 0:02:28.2]} 9. a5 {[%clk 0:02:50.3]} 9... Nbd5 {[%clk
0:02:26.2]} 10. Nxc4 {[%clk 0:02:41.4]} 10... Nb4 {[%clk 0:02:22.7]} 11. e4
{[%clk 0:02:39.6]} 11... Bg4 {[%clk 0:02:08.8]} 12. f3 {[%clk 0:02:35.2]} 12...
Bh5 {[%clk 0:02:07.5]} 13. Be3 {[%clk 0:02:29.6]} 13... Be7 {[%clk 0:02:06.8]}
14. O-O {[%clk 0:02:27.2]} 14... O-O {[%clk 0:02:05.7]} 15. Qb3 {[%clk
0:02:10.8]} 15... h6 {[%clk 0:01:58]} 16. Rfd1 {[%clk 0:02:07.4]} 16... Nd7
{[%clk 0:01:48.6]} 17. Na4 {[%clk 0:01:53.1]} 17... b5 {[%clk 0:01:41.6]} 18.
Nc5 {[%clk 0:01:41.7]} 18... bxc4 {[%clk 0:00:44.4]} 19. Qxb4 {[%clk 0:01:39.4]}
19... Nxc5 {[%clk 0:00:44.9]} 20. dxc5 {[%clk 0:01:37.7]} 20... Qb8 {[%clk
0:00:45.5]} 21. Qxc4 {[%clk 0:01:20.5]} 21... Qxb2 {[%clk 0:00:45]} 22. Ra2
{[%clk 0:01:20.3]} 22... Qb8 {[%clk 0:00:34.9]} 23. Bf4 {[%clk 0:01:10.3]} 23...
e5 {[%clk 0:00:31.3]} 24. Be3 {[%clk 0:01:04.8]} 24... Rd8 {[%clk 0:00:31]} 25.
Rad2 {[%clk 0:00:56.3]} 25... Rxd2 {[%clk 0:00:30.2]} 26. Rxd2 {[%clk
0:00:57.2]} 26... Qc7 {[%clk 0:00:29.9]} 27. a6 {[%clk 0:00:50.5]} 27... Rd8
{[%clk 0:00:29.1]} 28. Rxd8+ {[%clk 0:00:43.5]} 28... Qxd8 {[%clk 0:00:29]} 29.
Kf2 {[%clk 0:00:43.4]} 29... Bg5 {[%clk 0:00:25]} 30. Ke2 {[%clk 0:00:31]} 30...
Bxe3 {[%clk 0:00:23.6]} 31. Kxe3 {[%clk 0:00:31.9]} 31... Qa5 {[%clk 0:00:19.1]}
32. Bf1 {[%clk 0:00:28.4]} 32... Qe1+ {[%clk 0:00:16.9]} 33. Qe2 {[%clk
0:00:26.8]} 33... Qc3+ {[%clk 0:00:16.1]} 34. Qd3 {[%clk 0:00:26]} 34... Qxc5+
{[%clk 0:00:16.2]} 35. Kd2 {[%clk 0:00:22.4]} 35... f6 {[%clk 0:00:15.5]} 36.
Qd8+ {[%clk 0:00:14.2]} 36... Kh7 {[%clk 0:00:14.3]} 37. Qc7 {[%clk 0:00:14]}
37... Bxf3 {[%clk 0:00:13]} 38. Bd3 {[%clk 0:00:13]} 38... Qf2+ {[%clk
0:00:11.8]} 39. Kc3 {[%clk 0:00:12.9]} 39... Qd4+ {[%clk 0:00:12.2]} 40. Kc2
{[%clk 0:00:13]} 40... Bxe4 {[%clk 0:00:12.2]} 41. Bxe4+ {[%clk 0:00:12.2]}
41... Qxe4+ {[%clk 0:00:12.8]} 42. Kc3 {[%clk 0:00:11.6]} 42... Qd4+ {[%clk
0:00:13.3]} 43. Kc2 {[%clk 0:00:10.5]} 43... Qc4+ {[%clk 0:00:13.5]} 44. Kd2
{[%clk 0:00:10.7]} 44... Qxa6 {[%clk 0:00:14.4]} 45. Qe7 {[%clk 0:00:09.6]}
45... Qa2+ {[%clk 0:00:14]} 46. Ke3 {[%clk 0:00:08.9]} 46... a5 {[%clk
0:00:13.5]} 47. h4 {[%clk 0:00:08.2]} 47... Qb3+ {[%clk 0:00:13]} 48. Ke4 {[%clk
0:00:07.4]} 48... Qxg3 {[%clk 0:00:12.4]} 49. Qd7 {[%clk 0:00:03.9]} 49... Qxh4+
{[%clk 0:00:11.8]} 50. Ke3 {[%clk 0:00:03.4]} 50... Qf4+ {[%clk 0:00:11.8]} 51.
Ke2 {[%clk 0:00:03.4]} 51... Qe4+ {[%clk 0:00:11.7]} 52. Kf2 {[%clk 0:00:03.2]}
52... Qd4+ {[%clk 0:00:11.7]} 53. Kf3 {[%clk 0:00:01.8]} 53... Qxd7 {[%clk
0:00:11.2]} 0-1

[Event "*** Titled Tuesday Blitz"]
[Site "Chess.com"]
[Date "2021.04.20"]
[Round "10"]
[White "McCarthyStone"]
[Black "KubaGepard"]
[Result "0-1"]
[WhiteElo "2374"]
[BlackElo "2421"]
[TimeControl "180+1"]
[EndTime "11:56:16 PDT"]
[Termination "KubaGepard won by resignation"]

1. e4 {[%clk 0:03:00.9]} 1... c5 {[%clk 0:02:59.6]} 2. Nf3 {[%clk 0:02:59.5]}
2... e6 {[%clk 0:02:54.9]} 3. d3 {[%clk 0:02:58.7]} 3... g6 {[%clk 0:02:50.3]}
4. g3 {[%clk 0:02:58]} 4... Bg7 {[%clk 0:02:49.7]} 5. Bg2 {[%clk 0:02:58.9]}
5... Nc6 {[%clk 0:02:49]} 6. h4 {[%clk 0:02:47]} 6... h5 {[%clk 0:02:45.2]} 7.
O-O {[%clk 0:02:41.8]} 7... Nge7 {[%clk 0:02:43.1]} 8. Nc3 {[%clk 0:02:34.8]}
8... O-O {[%clk 0:02:40.1]} 9. Bg5 {[%clk 0:02:34.4]} 9... a6 {[%clk 0:02:37.1]}
10. Qd2 {[%clk 0:02:33.8]} 10... b5 {[%clk 0:02:34.3]} 11. Bh6 {[%clk
0:02:33.9]} 11... b4 {[%clk 0:02:33.7]} 12. Ne2 {[%clk 0:02:33.2]} 12... d5
{[%clk 0:02:32.4]} 13. Bxg7 {[%clk 0:02:33.2]} 13... Kxg7 {[%clk 0:02:31.3]} 14.
Nf4 {[%clk 0:02:26.9]} 14... d4 {[%clk 0:02:22]} 15. e5 {[%clk 0:02:15.5]} 15...
Nf5 {[%clk 0:02:18]} 16. Ng5 {[%clk 0:02:09.6]} 16... Qc7 {[%clk 0:02:09.8]} 17.
Rae1 {[%clk 0:01:57.1]} 17... Bd7 {[%clk 0:02:08]} 18. Ne4 {[%clk 0:01:37.7]}
18... Nxe5 {[%clk 0:01:43.9]} 19. Nxh5+ {[%clk 0:01:27.3]} 19... gxh5 {[%clk
0:01:42.7]} 20. Qg5+ {[%clk 0:01:27.6]} 20... Ng6 {[%clk 0:01:41.5]} 21. Nf6
{[%clk 0:01:24.4]} 21... Bc6 {[%clk 0:01:35.5]} 22. Nxh5+ {[%clk 0:01:19.8]}
22... Kh8 {[%clk 0:01:18.9]} 23. Qf6+ {[%clk 0:01:07.5]} 23... Kh7 {[%clk
0:01:16.5]} 24. Be4 {[%clk 0:00:51.3]} 24... Rg8 {[%clk 0:01:07.8]} 25. Bxc6
{[%clk 0:00:20]} 25... Qxc6 {[%clk 0:00:56.8]} 26. Qxf7+ {[%clk 0:00:19.4]}
26... Rg7 {[%clk 0:00:55.4]} 27. Nxg7 {[%clk 0:00:14.9]} 27... Nxg7 {[%clk
0:00:54.9]} 28. h5 {[%clk 0:00:13.8]} 28... Nh8 {[%clk 0:00:52]} 29. Qf6 {[%clk
0:00:11.2]} 29... Qd7 {[%clk 0:00:36.1]} 30. Re4 {[%clk 0:00:11.2]} 30... Qf7
{[%clk 0:00:34.2]} 31. Qxf7 {[%clk 0:00:09.2]} 31... Nxf7 {[%clk 0:00:34.8]} 32.
g4 {[%clk 0:00:09.2]} 32... Ng5 {[%clk 0:00:34.4]} 33. Rf4 {[%clk 0:00:07.6]}
33... Nh3+ {[%clk 0:00:34.3]} 34. Kh2 {[%clk 0:00:06.7]} 34... Nxf4 {[%clk
0:00:35.2]} 35. Kg3 {[%clk 0:00:07.6]} 35... Nd5 {[%clk 0:00:35]} 36. Re1 {[%clk
0:00:08]} 36... Kh6 {[%clk 0:00:32.6]} 37. Re5 {[%clk 0:00:08.6]} 37... Rf8
{[%clk 0:00:31]} 38. f4 {[%clk 0:00:08.9]} 38... Rxf4 {[%clk 0:00:27.1]} 39. a3
{[%clk 0:00:07.5]} 39... Rf1 {[%clk 0:00:22]} 40. axb4 {[%clk 0:00:07.5]} 40...
cxb4 {[%clk 0:00:22.2]} 41. Kh4 {[%clk 0:00:06.7]} 41... Rh1+ {[%clk 0:00:22.3]}
42. Kg3 {[%clk 0:00:06.9]} 42... Nf6 {[%clk 0:00:21.7]} 43. Ra5 {[%clk
0:00:03.9]} 43... Ngxh5+ {[%clk 0:00:21.5]} 44. gxh5 {[%clk 0:00:04.1]} 44...
Nxh5+ {[%clk 0:00:21.6]} 45. Kg2 {[%clk 0:00:04.6]} 45... Rc1 {[%clk 0:00:20.6]}
46. Rxa6 {[%clk 0:00:05.1]} 46... Rxc2+ {[%clk 0:00:21.1]} 47. Kf3 {[%clk
0:00:05.7]} 47... Rxb2 {[%clk 0:00:21.3]} 48. Rxe6+ {[%clk 0:00:06.6]} 48... Kg5
{[%clk 0:00:20.8]} 49. Rd6 {[%clk 0:00:07.2]} 49... Nf4 {[%clk 0:00:20.8]} 50.
Rxd4 {[%clk 0:00:05.6]} 50... Rb3 {[%clk 0:00:19.4]} 51. Ke4 {[%clk 0:00:04.1]}
51... Ne2 {[%clk 0:00:18.5]} 52. Rd5+ {[%clk 0:00:04.6]} 52... Kg4 {[%clk
0:00:19]} 53. Rd8 {[%clk 0:00:05.1]} 53... Nc3+ {[%clk 0:00:19.1]} 54. Kd4
{[%clk 0:00:05.3]} 54... Ne2+ {[%clk 0:00:19.6]} 55. Ke4 {[%clk 0:00:04.3]}
55... Rb1 {[%clk 0:00:19.8]} 56. Rg8+ {[%clk 0:00:04.1]} 56... Kh3 {[%clk
0:00:20.3]} 57. Kf3 {[%clk 0:00:04.6]} 57... Ng1+ {[%clk 0:00:20.6]} 58. Kf2
{[%clk 0:00:04.9]} 58... b3 {[%clk 0:00:19.7]} 59. Rh8+ {[%clk 0:00:03]} 59...
Kg4 {[%clk 0:00:20]} 60. Rg8+ {[%clk 0:00:03.4]} 60... Kf4 {[%clk 0:00:20.1]}
61. d4 {[%clk 0:00:03.9]} 61... Ke4 {[%clk 0:00:20]} 62. d5 {[%clk 0:00:03.7]}
62... Kxd5 {[%clk 0:00:20.3]} 63. Rd8+ {[%clk 0:00:04.5]} 63... Kc4 {[%clk
0:00:19.8]} 64. Rd1 {[%clk 0:00:05.4]} 64... Rxd1 {[%clk 0:00:19.3]} 0-1